Cogmind - Beta 9.1 @@@ ROGUE MODE // 2019.11.08 @ 23:07:22 Player: arsonius Result: Destroyed by G-47 Trooper with Particle Gun Performance ------------- Evolutions (0) 0 Regions Visited (1) 200 Robots Destroyed (12) 60 Value Destroyed (282) 282 Prototype IDs (0) 0 Alien Tech Used (0) 0 Bonus (0) 0 TOTAL SCORE: 542 Bonus ------- None Cogmind --------- Core Integrity 0/250 Matter 290/300 Energy 0/100 System Corruption 0% Temperature Cool (9) Location -10/Materials Parts ------- Power (1) Propulsion (2) Wheel Utility (2) Small Storage Unit Weapon Shielding Weapon (2) Welding Torch Inventory (6) High-capacity Storage Unit Medium Matter Pod (47) Sensor Array Signal Interpreter Seismic Analyzer Peak State ------------ Power Ion Engine Propulsion Wheel Wheel Utility Small Storage Unit Light Armor Plating Weapon Assault Rifle Light Assault Rifle Inventory Light Ion Engine Wheel Light Armor Plating Light Armor Plating Assault Rifle [Rating: 7] Favorites ----------- Power Ion Engine Engine Ion Engine Propulsion Wheel Leg Aluminum Leg Wheel Wheel Utility Small Storage Unit Storage Small Storage Unit Protection Light Armor Plating Weapon Assault Rifle Ballistic Gun Assault Rifle Special Weapon Welding Torch Build | -11 -10 ------- Run | Scr Mat Slots Evolved . | . . Power . | . . Propulsion . | . . Utility . | . . Weapon . | . . Parts Attached 16 | 6 10 Power 1 | 1 . Engine 1 | 1 . Core . | . . Reactor . | . . Propulsion 5 | 2 3 Treads . | . . Leg 1 | . 1 Wheel 4 | 2 2 Hover . | . . Flight . | . . Utility 5 | 1 4 Device . | . . Storage 1 | 1 . Processor . | . . Hackware . | . . Protection 4 | . 4 Artifact . | . . Weapon 5 | 2 3 Energy Gun . | . . Energy Cannon . | . . Ballistic Gun 4 | 2 2 Ballistic Cannon . | . . Launcher . | . . Special Weapon 1 | . 1 Impact Weapon . | . . Slashing Weapon . | . . Piercing Weapon . | . . Special Melee Weapon . | . . Unidentified Prototypes . | . . Parts Lost 8 | . 8 Power 1 | . 1 Propulsion 3 | . 3 Utility 2 | . 2 Weapon 2 | . 2 Highest Loss Streak 6 | . 6 Average Slot Usage (%) 88 | . 88 Engine 12 | . 12 Leg 1 | . 1 Wheel 24 | . 24 Storage 14 | . 14 Protection 9 | . 9 Ballistic Gun 23 | . 23 Special Weapon 1 | . 1 Naked Turns . | . . Heaviest Build 16 | 12 16 Greatest Support 20 | 20 20 Greatest Overweight (x) 3 | 1 3 Average Overweight (x) . | . . Largest Inventory Capacity 6 | 6 6 Average Capacity 5 | 4 6 Most Carried 6 | 4 6 Average Carried 5 | 2 5 Final Capacity 6 | 6 6 Final Carried 5 | 2 5 Class Distribution -------------------- 100% | Mutant Dominant Class ---------------- Mutant | -10/Materials Resources | -11 -10 ----------- Run | Scr Mat Matter Collected 550 | 219 331 Remotely . | . . Salvage Created 331 | . 331 Parts 27 | . 27 Haulers Intercepted . | . . Recyclers Shooed 1 | . 1 Parts Field Recycled . | . . Retrieved Matter . | . . Parts Self-Destructed . | . . Prevented . | . . Kills | -11 -10 ------- Run | Scr Mat Combat Hostiles Destroyed 9 | . 9 Guns 9 | . 9 Classes Destroyed 4 | . 4 Operator 1 | . 1 Watcher 2 | . 2 Swarmer 3 | . 3 Grunt 6 | . 6 Best Kill Streak 3 | . 3 Combat Bots Only 3 | . 3 Max Kills in Single Turn 1 | . 1 Gunslinging . | . . Exploded . | . . Melee . | . . Uniques/NPCs Destroyed . | . . Combat | -11 -10 -------- Run | Scr Mat Damage Taken 1149 | . 1149 Core 264 | . 264 Absorbed by Shields . | . . Core Remaining (%) 100 | 100 . Volleys Fired 53 | . 53 Largest 2 | . 2 Hottest 40 | . 40 Shots Fired 90 | . 90 Gun 76 | . 76 Cannon . | . . Launcher . | . . Special 14 | . 14 Kinetic 76 | . 76 Thermal 14 | . 14 Explosive . | . . Electromagnetic . | . . Robot Hit Streak 5 | . 5 Robot Miss Streak 3 | . 3 Penetration Max . | . . Secondary Targets 3 | . 3 Max Gunslinging Chain 1 | . 1 Shots Hit Robots 57 | . 57 Core Hits 27 | . 27 Critical Hits . | . . Critical Kills . | . . Critical Parts Destroyed . | . . Melee Attacks . | . . Impact . | . . Slashing . | . . Piercing . | . . Sneak Attacks . | . . Combat Hostiles . | . . Follow-up Attacks . | . . Damage Inflicted 597 | . 597 Guns 567 | . 567 Cannons . | . . Explosions . | . . Melee . | . . Ramming 8 | . 8 Kinetic 567 | . 567 Thermal 22 | . 22 Explosive . | . . Electromagnetic . | . . Impact . | . . Slashing . | . . Piercing . | . . Highest Corruption . | . . Average Corruption . | . . Corruption Purged . | . . Overload Shots . | . . Overflow Damage . | . . Projectiles . | . . Explosions . | . . Melee . | . . Knockbacks . | . . Impact . | . . Kinetic . | . . Secondary . | . . Self-Inflicted Damage 2 | . 2 Shots . | . . Rammed 4 | . 4 Targets Rammed 5 | . 5 Kicked 1 | . 1 Crushed . | . . Highest Temperature 74 | . 74 Average Temperature 23 | . 23 Received Heat Transfer 612 | . 612 Siege Activations . | . . Robots Corrupted . | . . Combat Hostiles . | . . Parts Fried . | . . Impact Corruptions . | . . Robots Melted . | . . Combat Hostiles . | . . Parts Melted . | . . Heat Transferred 250 | . 250 Parts Sabotaged . | . . Parts Stolen . | . . Parts Stripped . | . . Power Chain Reactions . | . . Missiles Intercepted . | . . Alert | -11 -10 ------- Run | Scr Mat Peak Influence 180 | . 180 Average Influence 58 | . 62 Maximum Alert Level . | . . Low Security (%) 100 | . . Level 1 . | . . Level 2 . | . . Level 3 . | . . Level 4 . | . . Level 5 . | . . High Security . | . . Max Security . | . . Squads Dispatched 2 | . 2 Investigation 1 | . 1 Extermination . | . . Reinforcement 1 | . 1 Assault . | . . Garrison . | . . Intercept . | . . Construction Impeded . | . . Haulers Reinforced . | . . Stealth | -11 -10 --------- Run | Scr Mat Distress Signals 1 | . 1 Communications Jammed . | . . Distress Signals . | . . Times Spotted 14 | . 14 Peak Tracking Total 3 | . 3 Tactical Retreats . | . . Traps | -11 -10 ------- Run | Scr Mat Traps Triggered 1 | . 1 Indirectly . | . . Trap Hack Attempts . | . . Triggered . | . . Disarmed . | . . Reprogrammed . | . . Reused . | . . Traps Extracted . | . . Installed . | . . Triggered . | . . Machines | -11 -10 ---------- Run | Scr Mat Machines Disabled . | . . Max in Single Turn . | . . Machines Sabotaged . | . . Garrisons Compromised . | . . Overloaded Fab Kills . | . . Fab Network Shutdowns . | . . Hacking | -11 -10 --------- Run | Scr Mat Machines Accessed 4 | . 4 Terminals 4 | . 4 Fabricators . | . . Repair Stations . | . . Recycling Units . | . . Scanalyzers . | . . Garrison Access . | . . Total Hacks 14 | . 14 Successful 8 | . 8 Failed 6 | . 6 Catastrophic 1 | . 1 Database Lockouts . | . . Manual 6 | . 6 Terminals 14 | . 14 Fabricators . | . . Repair Stations . | . . Recycling Units . | . . Scanalyzers . | . . Garrison Access . | . . Terminal Hacks 8 | . 8 Part Schematic 1 | . 1 Emergency Access Points 1 | . 1 Terminal Index 1 | . 1 Locate Traps 1 | . 1 Patrol Status 1 | . 1 Hauler Manifests 1 | . 1 Zone Layout 2 | . 2 Fabricator Hacks . | . . Repair Station Hacks . | . . Recycling Unit Hacks . | . . Scanalyzer . | . . Garrison Access Hacks . | . . Unauthorized Hacks . | . . Terminals . | . . Fabricators . | . . Repair Stations . | . . Recycling Units . | . . Scanalyzers . | . . Garrison Access . | . . Data Cores Recovered . | . . Used . | . . Hacking Detections 4 | . 4 Full Trace Events 1 | . 1 Feedback Events . | . . Feedback Blocked . | . . Robot Schematics Acquired . | . . Robots Built . | . . Matter . | . . Time . | . . Total Robot Build Rating . | . . Part Schematics Acquired 1 | . 1 Parts Built . | . . Matter . | . . Time . | . . Total Part Build Rating . | . . Parts Repaired . | . . Time . | . . Parts Recycled . | . . Recycled Matter . | . . Retrieved Matter . | . . Retrieved Components . | . . Parts Scanalyzed . | . . Part Schematics Acquired . | . . Parts Damaged . | . . Bothacking | -11 -10 ------------ Run | Scr Mat Used RIF Installer . | . . Robots Hacked . | . . Non-combat . | . . Combat . | . . Robot Hacks Applied . | . . Relay Couplers Released . | . . Robots Rewired . | . . Allies Hacked . | . . Hacks Repelled . | . . Allies | -11 -10 -------- Run | Scr Mat Total Allies . | . . Largest Group . | . . Highest-Rated Group . | . . Highest-Rated Ally . | . . Total Orders . | . . Ally Attacks . | . . Total Damage . | . . Kills . | . . Allies Corrupted . | . . Allies Melted . | . . Intel | -11 -10 ------- Run | Scr Mat Robot Analysis Total . | . . Derelict Logs Recovered . | . . Drone Launches . | . . Drone Recoveries . | . . Exploration | -11 -10 ------------- Run | Scr Mat Turns Passed 706 | 41 665 Spaces Moved 508 | 35 473 Core 9 | 7 2 Treads . | . . Legs 3 | . 3 Wheels 496 | 28 468 Hover . | . . Flight . | . . Fastest Speed 50 | 50 80 Average Speed 80 | 78 80 Slowest Speed 200 | 100 200 Overloaded Moves . | . . Propulsion Burnouts . | . . Robots Hopped . | . . Cave-ins Triggered . | . . Exploration Rate (%) 36 | 3 70 Regions Visited 1 Branch Regions . Pre-discovered Areas . | . . Known Exits Taken . | . . Unknown Exits Taken 1 | 1 . Scrap Searched . | . . Spaces Dug . | . . Terrain Destroyed . | . . Melee . | . . Projectile . | . . AOE . | . . Actions | -11 -10 --------- Run | Scr Mat Total 714 | 48 666 Wait 105 | . 105 Move 507 | 34 473 Hop . | . . Pick Up 22 | 8 14 Fast Attach 1 | . 1 Attach 12 | 6 6 Detach . | . . Swap 3 | . 3 Drop 6 | . 6 Fire 53 | . 53 Melee . | . . Ram . | . . Kick 5 | . 5 Crush . | . . Escape Stasis . | . . Rewire . | . . Trap . | . . Miscellaneous . | . . Route ------- -11/Scrapyard -10/Materials (discovered 3 exits: [*Mat x2] / [*Min]) History --------- Turn | Location | Event 19 | -11/Scrapyard | Discovered new exit (range 15) 42 | -11/Scrapyard | Entered Materials 303 | -10/Materials | Build established: Mutant 366 | -10/Materials | Discovered new exit (range 3) 445 | -10/Materials | Discovered new exit (range 11) 588 | -10/Materials | Core integrity fell below 50% 644 | -10/Materials | Discovered new exit (range 16) 646 | -10/Materials | Lost 6 parts (1p2n1u2w) 676 | -10/Materials | Core integrity fell below 20% 707 | -10/Materials | Destroyed by G-47 Trooper with Particle Gun Last Messages --------------- 00611_ Destabilizing: Short circuit. 00611_ Wheel permanently disabled. 00613_ Acquired 36 matter. 00614_ K-01 Serf collects debris. 00614_ Acquired 46 matter. 00615_ Ion Engine destroyed. 00617_ Acquired Wheel. 00617_ K-01 Serf collects debris. 00624_ Dropped Wheel. 00626_ R-06 Scavenger collects Wheel. 00630_ Acquired Seismic Analyzer. 00633_ Slammed into G-47 Trooper. 00634_ Kicked G-47 Trooper out of the way. 00635_ Slammed into G-47 Trooper. 00644_ EXIT=FOUND 00655_ Acquired Welding Torch. 00658_ Acquired Hcp. Storage Unit. 00687_ Lgt. Armor Plating destroyed. 00701_ Aluminum Leg destroyed. 00702_ G-47 Trooper heat damages Particle Gun. Map ----- +----------------------------------------------------+ | | | | | ??????????????????????????###########????????????? | | ??????????????????????????# #????????????? | | ??????????????????????????# #????????????? | | ??????????????????????????#!! """ #????????????? | | ??????????????????????????#!! """ #????????????? | | ??????????????????????????# """ #????????????? | | ??????????????????????????# #????????????? | | ??????????????????????????# #????????????? | | ??????????????????????????# #????????????? | | ????????#######################+###########??????? | | ???????? ^ #??????? | | ????????< ^ #??????? | | ???????? ^ #??????? | | ????????????######## ########+####### #??????? | | ???????????????????# #??????# """ ## #??????? | | ???????????????????# #??????# "T" ## #??????? | | ???????????????????# #??????# ## #??????? | | ???????????????????# #??????# ## #??????? | | ???????????????????# #??????# ## #???#### | | ???????????????????# ######## """ ## #???# | | ???????????????????# # T # """ ## #???# "" | | ???????????????????# # #/ """ ## #???# "Y | | ????????????# !| # # # ## #???# "" | | ????????????# ! + g @ == # """ ## #???# | | ????????????# # # == # """ ## #???# | | ???????????????????# # = # """ ## ######## | | ???????????????????# ######## ## | | ???????????????????# #??????######### ######## | | ???????????????????# +??????????????# # | | ??????????????????? #??????????????# # | | ?????????????????? #??????????????# # | | ????????????????? ???????????????# # """ "" | | ????????????????? ???????????????# # """ "" | | ????????????????! ????????#??????# # """ "" | | ???????????????##!! ?????#""""?????# # | | ????????????????#### ?????#" !"! ???# # = | | ??????????????????? ???###" "### #+###### | | ???????????????????? ?? [ | | ????????????????????????? < = * | | ????????????????????????? ! = | | ??????????????????# ##### #######+####+# | | ??????????????????#######??########### # ???? | | ???????????????????????????# #??# # ???? | | ###########????????????????# #??# # ???? | | #! #????????????????# #??# # ???? | | # "" #?????????######## "T" #??# # ???? | | # T" #?????????# # """ #??# # ???? | | # """ "" #?????????# # #??# # ???? | +----------------------------------------------------+ Best States ------------- Heat Dissipation 25 Energy Generation 10 Energy Capacity 250 Matter Stores 300 Matter Capacity 300 Sight Range 16 Terrain Scan Density 10 Armor Coverage 150 Weapon Shielding 33 Evasion (%) 44 Item Schematics ----------------- Signal Interpreter | -10/Materials | Hacked Robot Schematics ------------------ None Fabricated ------------ Nothing Alien Tech Used ----------------- None Achievements -------------- None Challenges ------------ None Game ------ Seed HoverMagneticBoosters Manual? 0 Play Time 00:24:34 Cumulative 58.6 hours Start 2019.11.08 @ 22:23:08 End 2019.11.08 @ 23:07:22 Sessions 1 Manual Loads 0 Difficulty Rogue Special Mode None Game No. 17 Rogue 17 Adventurer 0 Explorer 0 Win Type - Total 0 Types 0/0/0/0/0/0/0 Lore% 31 Gallery% 52 Achievement% 33 Wizard Run 0 Options --------- ASCII 1 Keyboard 0 Movement Numpad Keybinds 0 Fullscreen 1 Font 12/Smallcaps Map View 83x54 Tactical HUD 1 Map Filters NONE Filters NONE Steam 1 RUN: 2e83abde-963b-43fa-9932-70ea5c3aff1b